{"text_format":"1","workbook":"xlsx","n_sheets":5,"sheets":["Rozpočet_digitalizace","X.vzor","7.Osobní náklady","data","List2"],"not_rendered":{"charts":0,"images":1,"macros":1,"external_links":0,"defined_names":0,"comments":5,"pivot_tables":0},"unopened":[],"bounds":{"document_bytes":16777216,"sheet_cells":100000,"rows_first":2000,"rows_last":500,"rows_between":2000,"halvings":0,"cell_chars":16384,"cell_head_chars":4096},"cells_cut":0,"cells_raw":0,"read":"whole","date_system":"1900"}

{"sheet":"Rozpočet_digitalizace","index":0,"n_rows":46,"n_cols":7,"rows_kept":46,"cut":false,"hidden":false,"merged":[[42,3,44,6],[0,1,7,8]]}
["Instrukce:","Editujte pouze zelená pole. Struktura kategorií a podkategorií nákladů odpovídá struktuře nákladů uvedené v Pravidlech pro žadatele, kap. C.4. U nákladových celků, které nemají samostatný rozpočet doložitelný jako zvláštní přílohu (např. výkaz výměr), vytvořte a položkově rozepište (pod)kategorie na nově vytvořených listech tohoto Excelu dle příkladu listu \"X.vzor / 6.Služby\". V případě kategorií, které se nerozpadají na (pod)kategorie nebo položky, ale jsou vykazovány za více partnerů, postupujte stejně. Na tomto listu nepřidávejte nové řádky. V případě úspěšné žádosti bude tabulka doplněna o sloupce, kdy příjemce bude ke každé ŽoP přikládat tento Excel s vyznačením čerpání pro každou položku. Excel vkládejte do MS2021+ zazipovaný, jelikož nepodporuje soubor s makry."]
[]
[]
[]
[]
[]
[]
[]
["Název ","Výdaje bez DPH","Sazba DPH","Výdaje s DPH","Nezpůsobilá část výdajů stanovená žadatelem (bez DPH)","Nezpůsobilá část DPH","Způsobilé výdaje po zohlednění způsobilosti DPH"]
["1. Investiční výdaje",{"$f":"SUM(B11,B14:B17,B20:B20,B21:B22,B23)","v":0},null,{"$f":"SUM(D11,D14:D17,D20:D20,D21:D22,D23)","v":0},{"$f":"SUM(E11,E14:E17,E20:E20,E21:E22,E23)","v":0},{"$f":"SUM(F11,F14:F17,F20:F20,F21:F22,M20,F23)","v":0},{"$f":"SUM(G11,G14:G17,G20:G20,G21:G22)","v":0}]
["1.1 Budovy, stavby",{"$f":"SUM(B12:B13)","v":0},null,{"$f":"SUM(D12:D13)","v":0},{"$f":"SUM(E12:E13)","v":0},{"$f":"SUM(F12:F13)","v":0},{"$f":"G12+G13","v":0}]
["1.1.1 Stavby pořízené formou výstavby a stavební úpravy",0,0.21,{"$f":"B12+(B12*C12)","v":0},0,0,{"$f":"IF(data!$G$2=TRUE,(Rozpočet_digitalizace!B12-Rozpočet_digitalizace!E12),(Rozpočet_digitalizace!D12-(Rozpočet_digitalizace!E12+(E12*C12)))-F12)","v":0}]
["1.1.2 Pořízení nemovitosti (budovy) ",0,0.21,0,0,0,{"$f":"IF(data!$G$2=TRUE,(Rozpočet_digitalizace!B13-Rozpočet_digitalizace!E13),(Rozpočet_digitalizace!D13-(Rozpočet_digitalizace!E13+(E13*C13)))-F13)","v":0}]
["1.2. Hmotný movitý majetek",0,0.21,0,0,0,{"$f":"IF(data!$G$2=TRUE,(Rozpočet_digitalizace!B14-Rozpočet_digitalizace!E14),(Rozpočet_digitalizace!D14-(Rozpočet_digitalizace!E14+(E14*C14)))-F14)","v":0}]
["1.3. Materiál",0,0.21,0,0,0,{"$f":"IF(data!$G$2=TRUE,(Rozpočet_digitalizace!B15-Rozpočet_digitalizace!E15),(Rozpočet_digitalizace!D15-(Rozpočet_digitalizace!E15+(E15*C15)))-F15)","v":0}]
["1.4. Nehmotný majetek",0,0.21,0,0,0,{"$f":"IF(data!$G$2=TRUE,(Rozpočet_digitalizace!B16-Rozpočet_digitalizace!E16),(Rozpočet_digitalizace!D16-(Rozpočet_digitalizace!E16+(E16*C16)))-F16)","v":0}]
["1.5. Osobní náklady",0,null,0,0,0,{"$f":"IF(data!$G$2=TRUE,(Rozpočet_digitalizace!B17-Rozpočet_digitalizace!E17),(Rozpočet_digitalizace!D17-(Rozpočet_digitalizace!E17+(E17*C17))))","v":0}]
["1.5.1 Hlavní administrativní tým",0,null,0,0,0,{"$f":"IF(data!$G$2=TRUE,(Rozpočet_digitalizace!B18-Rozpočet_digitalizace!E18),(Rozpočet_digitalizace!D18-(Rozpočet_digitalizace!E18+(E18*C18))))","v":0}]
["1.5.2 Odborný tým",0,null,0,0,0,{"$f":"IF(data!$G$2=TRUE,(Rozpočet_digitalizace!B19-Rozpočet_digitalizace!E19),(Rozpočet_digitalizace!D19-(Rozpočet_digitalizace!E19+(E19*C19))))","v":0}]
["1.6. Služby",0,null,0,0,0,0]
["1.7. Vícepráce",0,0.21,0,0,0,{"$f":"IF(data!$G$2=TRUE,(Rozpočet_digitalizace!B21-Rozpočet_digitalizace!E21),(Rozpočet_digitalizace!D21-(Rozpočet_digitalizace!E21+(E21*C21)))-F21)","v":0}]
["1.8. Vyvolané investice",0,0.21,0,0,0,{"$f":"IF(data!$G$2=TRUE,(Rozpočet_digitalizace!B22-Rozpočet_digitalizace!E22),(Rozpočet_digitalizace!D22-(Rozpočet_digitalizace!E22+(E22*C22)))-F22)","v":0}]
["1.9. Nezpůsobilé investiční výdaje",0,0.21,0,{"$f":"D23","v":0},0,0]
["2. Neinvestiční výdaje",{"$f":"SUM(B25,B28,B29,B30,B31,B34,B35:B36,B37)","v":3683170.221082353},null,{"$f":"SUM(D25,D28:D31,D34:D34,D35:D36,D37)","v":3683170.221082353},{"$f":"SUM(E25,E28:E31,E34:E34,E35:E36,E37)","v":0},{"$f":"SUM(F25,F28:F31,F34:F34,F35:F36,F37)","v":0},{"$f":"SUM(G25,G28:G31,G34,G35:G36)","v":3683170.221082353}]
["2.1. Budovy, stavby",{"$f":"SUM(B26:B27)","v":0},null,{"$f":"SUM(D26:D27)","v":0},{"$f":"SUM(E26:E27)","v":0},{"$f":"SUM(F26:F27)","v":0},{"$f":"G26+G27","v":0}]
["2.1.1 Stavby pořízené formou výstavby a stavební úpravy",0,0.21,{"$f":"B26+(B26*C26)","v":0},0,0,{"$f":"IF(data!$G$2=TRUE,(Rozpočet_digitalizace!B26-Rozpočet_digitalizace!E26),(Rozpočet_digitalizace!D26-(Rozpočet_digitalizace!E26+(E26*C26)))-F26)","v":0}]
["2.1.2 Pořízení nemovitosti (budovy) ",0,0.21,0,0,0,{"$f":"IF(data!$G$2=TRUE,(Rozpočet_digitalizace!B27-Rozpočet_digitalizace!E27),(Rozpočet_digitalizace!D27-(Rozpočet_digitalizace!E27+(E27*C27)))-F27)","v":0}]
["2.2. Hmotný movitý majetek",0,0.21,0,0,0,{"$f":"IF(data!$G$2=TRUE,(Rozpočet_digitalizace!B28-Rozpočet_digitalizace!E28),(Rozpočet_digitalizace!D28-(Rozpočet_digitalizace!E28+(E28*C28)))-F28)","v":0}]
["2.3. Materiál",0,0.21,0,0,0,{"$f":"IF(data!$G$2=TRUE,(Rozpočet_digitalizace!B29-Rozpočet_digitalizace!E29),(Rozpočet_digitalizace!D29-(Rozpočet_digitalizace!E29+(E29*C29)))-F29)","v":0}]
["2.4. Nehmotný majetek",0,0.21,0,0,0,{"$f":"IF(data!$G$2=TRUE,(Rozpočet_digitalizace!B30-Rozpočet_digitalizace!E30),(Rozpočet_digitalizace!D30-(Rozpočet_digitalizace!E30+(E30*C30)))-F30)","v":0}]
["2.5. Osobní náklady",{"$f":"SUM(B32:B33)","v":3683170.221082353},null,{"$f":"SUM(D32:D33)","v":3683170.221082353},{"$f":"SUM(E32:E33)","v":0},{"$f":"SUM(F32:F33)","v":0},{"$f":"G32+G33","v":3683170.221082353}]
["2.5.1 Hlavní administrativní tým",{"$f":"'7.Osobní náklady'!H10","v":1044000.221082353},null,1044000.221082353,0,0,{"$f":"IF(data!$G$2=TRUE,(Rozpočet_digitalizace!B32-Rozpočet_digitalizace!E32),(Rozpočet_digitalizace!D32-(Rozpočet_digitalizace!E32+(E32*C32))))","v":1044000.221082353}]
["2.5.2 Odborný tým",{"$f":"'7.Osobní náklady'!H57","v":2639170},null,2639170,0,0,{"$f":"IF(data!$G$2=TRUE,(Rozpočet_digitalizace!B33-Rozpočet_digitalizace!E33),(Rozpočet_digitalizace!D33-(Rozpočet_digitalizace!E33+(E33*C33))))","v":2639170}]
["2.6. Služby",0,null,0,0,0,0]
["2.7. Vícepráce",0,0.21,0,0,0,{"$f":"IF(data!$G$2=TRUE,(Rozpočet_digitalizace!B35-Rozpočet_digitalizace!E35),(Rozpočet_digitalizace!D35-(Rozpočet_digitalizace!E35+(E35*C35)))-F35)","v":0}]
["2.8. Vyvolané investice",0,0.21,0,0,0,{"$f":"IF(data!$G$2=TRUE,(Rozpočet_digitalizace!B36-Rozpočet_digitalizace!E36),(Rozpočet_digitalizace!D36-(Rozpočet_digitalizace!E36+(E36*C36)))-F36)","v":0}]
["2.9. Nezpůsobilé neinvestiční výdaje",0,0.21,0,{"$f":"D37","v":0},0,0]
["Celkem investiční a neinvestiční výdaje",{"$f":"SUM(B24,B10)","v":3683170.221082353},null,{"$f":"SUM(D24,D10)","v":3683170.221082353},{"$f":"SUM(E24,E10)","v":0},{"$f":"SUM(F24,F10)","v":0},{"$f":"SUM(G10,G24)","v":3683170.221082353}]
["Paušál (nepřímé výdaje) ",7.0000000000000007E-2,null,null,null,null,{"$f":"(G38)*B39","v":257821.91547576475}]
["Celkem",null,null,null,null,null,{"$f":"SUM(G38:G39)","v":3940992.1365581178}]
[]
["Celkové výdaje projektu",{"$f":"D38+G39","v":3940992.1365581178},null,"Komentář k nezpůsobilým výdajům:"]
["Celkové způsobilé výdaje projektu",{"$f":"G40","v":3940992.1365581178}]
["Celkové nezpůsobilé výdaje projektu",{"$f":"B42-B43","v":0}]
["Celkové nezpůsobilé výdaje projektu - investiční",{"$f":"D10-G10","v":0}]
["Celkové nezpůsobilé výdaje projektu - neinvestiční",{"$f":"D24-G24","v":0}]

{"sheet":"X.vzor","index":1,"n_rows":41,"n_cols":11,"rows_kept":41,"cut":false,"hidden":false,"merged":[[41,7,43,10],[1,0,1,4],[1,5,6,7],[9,3,10,4],[9,6,10,6],[24,3,24,4]]}
["Kumulativní rozpočet projektu"]
["Instrukce:",null,null,null,null,"Editujte pouze zelená pole. Rozepiště položky do úrovně jednotek vyšších než 40 000 Kč. V případě položek, jejichž kumulativní náklad bude nižší, uveďte jako jednotku \"celkem\". Stejné položky úvadějte do jednoho řádku s vymezením počtu jednotek. Je možné přidávat libovolné množství řádků. Tento list je příkladový a je třeba jej kopírovat pro využití na rozepsání ostatních polože z prvního listu (viz příklad 1. - Pozemky)."]
[]
[]
[]
[]
[]
[]
["Název položky ","Popis vazby na aktivitu(y) projektu","Přiřazení subjektu: žadatel, anebo název partnera s finančním příspěvkem","Měrná jednotka (kus, den, apod.)","Počet jednotek","Celková cena bez DPH ","Sazba DPH","Celková cena s DPH","Nezpůsobilá část celkových výdajů stanovená žadatelem (bez DPH)","Nezpůsobilá část DPH","Způsobilé výdaje po zohlednění způsobilosti DPH"]
["1. ",null,null,null,null,{"$f":"SUM(F11,F25)","v":0},null,{"$f":"SUM(H25,H11)","v":0},{"$f":"SUM(I25,I11)","v":0},{"$f":"SUM(J25,J11)","v":0},{"$f":"SUM(K25,K11)","v":0}]
["1.1 Investiční výdaje",null,null,null,null,{"$f":"SUM(F12:F24)","v":0},null,{"$f":"SUM(H12:H24)","v":0},{"$f":"SUM(I12:I24)","v":0},{"$f":"SUM(J12:J24)","v":0},{"$f":"SUM(K12:K24)","v":0}]
[null,null,null,null,null,0,0.21,{"$f":"F12+(F12*G12)","v":0},0,0,{"$f":"IF(data!$G$2=TRUE,(X.vzor!F12-X.vzor!I12),(X.vzor!H12-(X.vzor!I12+(I12*G12)))-J12)","v":0}]
[null,null,null,null,null,0,0.21,{"$f":"F13+(F13*G13)","v":0},0,0,{"$f":"IF(data!$G$2=TRUE,(X.vzor!F13-X.vzor!I13),(X.vzor!H13-(X.vzor!I13+(I13*G13)))-J13)","v":0}]
[null,null,null,null,null,0,0.21,0,0,0,{"$f":"IF(data!$G$2=TRUE,(X.vzor!F14-X.vzor!I14),(X.vzor!H14-(X.vzor!I14+(I14*G14)))-J14)","v":0}]
[null,null,null,null,null,0,0.21,0,0,0,{"$f":"IF(data!$G$2=TRUE,(X.vzor!F15-X.vzor!I15),(X.vzor!H15-(X.vzor!I15+(I15*G15)))-J15)","v":0}]
[null,null,null,null,null,0,0.21,0,0,0,{"$f":"IF(data!$G$2=TRUE,(X.vzor!F16-X.vzor!I16),(X.vzor!H16-(X.vzor!I16+(I16*G16)))-J16)","v":0}]
[null,null,null,null,null,0,0.21,0,0,0,{"$f":"IF(data!$G$2=TRUE,(X.vzor!F17-X.vzor!I17),(X.vzor!H17-(X.vzor!I17+(I17*G17)))-J17)","v":0}]
[null,null,null,null,null,0,0.21,0,0,0,{"$f":"IF(data!$G$2=TRUE,(X.vzor!F18-X.vzor!I18),(X.vzor!H18-(X.vzor!I18+(I18*G18)))-J18)","v":0}]
[null,null,null,null,null,0,0.21,0,0,0,{"$f":"IF(data!$G$2=TRUE,(X.vzor!F19-X.vzor!I19),(X.vzor!H19-(X.vzor!I19+(I19*G19)))-J19)","v":0}]
[null,null,null,null,null,0,0.21,0,0,0,{"$f":"IF(data!$G$2=TRUE,(X.vzor!F20-X.vzor!I20),(X.vzor!H20-(X.vzor!I20+(I20*G20)))-J20)","v":0}]
[null,null,null,null,null,0,0.21,0,0,0,{"$f":"IF(data!$G$2=TRUE,(X.vzor!F21-X.vzor!I21),(X.vzor!H21-(X.vzor!I21+(I21*G21)))-J21)","v":0}]
[null,null,null,null,null,0,0.21,0,0,0,{"$f":"IF(data!$G$2=TRUE,(X.vzor!F22-X.vzor!I22),(X.vzor!H22-(X.vzor!I22+(I22*G22)))-J22)","v":0}]
[null,null,null,null,null,0,0.21,0,0,0,{"$f":"IF(data!$G$2=TRUE,(X.vzor!F23-X.vzor!I23),(X.vzor!H23-(X.vzor!I23+(I23*G23)))-J23)","v":0}]
[null,null,null,null,null,0,0.21,0,0,0,{"$f":"IF(data!$G$2=TRUE,(X.vzor!F24-X.vzor!I24),(X.vzor!H24-(X.vzor!I24+(I24*G24)))-J24)","v":0}]
["1.2 Neinvestiční výdaje",null,null,null,null,{"$f":"SUM(F26:F38)","v":0},null,{"$f":"SUM(H26:H38)","v":0},{"$f":"SUM(I26:I38)","v":0},{"$f":"SUM(J26:J38)","v":0},{"$f":"SUM(K26:K38)","v":0}]
[null,null,null,null,null,0,0.21,0,0,0,{"$f":"IF(data!$G$2=TRUE,(X.vzor!F26-X.vzor!I26),(X.vzor!H26-(X.vzor!I26+(I26*G26)))-J26)","v":0}]
[null,null,null,null,null,0,0.21,0,0,0,{"$f":"IF(data!$G$2=TRUE,(X.vzor!F27-X.vzor!I27),(X.vzor!H27-(X.vzor!I27+(I27*G27)))-J27)","v":0}]
[null,null,null,null,null,0,0.21,0,0,0,{"$f":"IF(data!$G$2=TRUE,(X.vzor!F28-X.vzor!I28),(X.vzor!H28-(X.vzor!I28+(I28*G28)))-J28)","v":0}]
[null,null,null,null,null,0,0.21,0,0,0,{"$f":"IF(data!$G$2=TRUE,(X.vzor!F29-X.vzor!I29),(X.vzor!H29-(X.vzor!I29+(I29*G29)))-J29)","v":0}]
[null,null,null,null,null,0,0.21,0,0,0,{"$f":"IF(data!$G$2=TRUE,(X.vzor!F30-X.vzor!I30),(X.vzor!H30-(X.vzor!I30+(I30*G30)))-J30)","v":0}]
[null,null,null,null,null,0,0.21,0,0,0,{"$f":"IF(data!$G$2=TRUE,(X.vzor!F31-X.vzor!I31),(X.vzor!H31-(X.vzor!I31+(I31*G31)))-J31)","v":0}]
[null,null,null,null,null,0,0.21,0,0,0,{"$f":"IF(data!$G$2=TRUE,(X.vzor!F32-X.vzor!I32),(X.vzor!H32-(X.vzor!I32+(I32*G32)))-J32)","v":0}]
[null,null,null,null,null,0,0.21,0,0,0,{"$f":"IF(data!$G$2=TRUE,(X.vzor!F33-X.vzor!I33),(X.vzor!H33-(X.vzor!I33+(I33*G33)))-J33)","v":0}]
[null,null,null,null,null,0,0.21,0,0,0,{"$f":"IF(data!$G$2=TRUE,(X.vzor!F34-X.vzor!I34),(X.vzor!H34-(X.vzor!I34+(I34*G34)))-J34)","v":0}]
[null,null,null,null,null,0,0.21,0,0,0,{"$f":"IF(data!$G$2=TRUE,(X.vzor!F35-X.vzor!I35),(X.vzor!H35-(X.vzor!I35+(I35*G35)))-J35)","v":0}]
[null,null,null,null,null,0,0.21,0,0,0,{"$f":"IF(data!$G$2=TRUE,(X.vzor!F36-X.vzor!I36),(X.vzor!H36-(X.vzor!I36+(I36*G36)))-J36)","v":0}]
[null,null,null,null,null,0,0.21,0,0,0,{"$f":"IF(data!$G$2=TRUE,(X.vzor!F37-X.vzor!I37),(X.vzor!H37-(X.vzor!I37+(I37*G37)))-J37)","v":0}]
[null,null,null,null,null,0,0.21,0,0,0,{"$f":"IF(data!$G$2=TRUE,(X.vzor!F38-X.vzor!I38),(X.vzor!H38-(X.vzor!I38+(I38*G38)))-J38)","v":0}]
["Celkem",null,null,null,null,{"$f":"SUM(F25+F11)","v":0},null,{"$f":"SUM(H25+H11)","v":0},{"$f":"SUM(I25+I11)","v":0},{"$f":"SUM(J25+J11)","v":0},{"$f":"SUM(K25+K11)","v":0}]
[]
[null,null,null,null,null,null,null,"Komentář k nezpůsobilým výdajům:"]

{"sheet":"7.Osobní náklady","index":2,"n_rows":60,"n_cols":18,"rows_kept":60,"cut":false,"hidden":false,"merged":[[4,16,5,16],[4,17,5,17],[4,15,5,15],[6,0,10,0],[0,1,2,3],[11,0,57,0],[4,13,4,14],[4,1,5,1],[4,3,5,3],[4,4,5,4],[4,6,5,6],[4,7,5,7],[4,8,5,8],[4,12,5,12],[4,9,5,9],[4,11,5,11],[4,5,5,5],[4,10,5,10],[4,2,5,2]]}
["instrukce","Editujte pouze zelená pole. Tabulku vyplňujte v souladu s přílohou 2. Mzdy a platy Pravidel pro žadatele. Můžete přidávat řádky. Po přídání řádků zkontrolujte funkčnost výpočtů. Příklad kurzívou."]
[]
[]
[null,"Realizační tým"]
[null,"Název pozice","Mzdová sazba odpovídající úvazku ve výši 1,0 FTE/ hodinová sazba u DPP/DPČ","Průměrný úvazek (FTE) za kalendářní měsíc projektu / počet hodin za období realizace projektu v případě DPP/DPČ","Výše osobních nákladů za jeden kalendářní měsíc (hrubá mzda / plat) / Výše osobních nákladů za sledované období v případě DPP/DPČ","Výše osobních nákladů včetně odvodů na straně zaměstnavatele","Počet měsíců za vykazované období","Celkem","Způsob stanovení nákladů na zaměstnance","Kód ISPV","Mzda/plat/odměna","Charakteristika pracovího místa / náplň práce","Způsob doložení stanovení kódu","Období zapojení osoby do projektu",null,"Poznámka k výpočtu","Zapojený subjekt (příjemce/ konkrétní partner)","Popis vazby na aktivitu(y) projektu (sle SP)"]
[null,null,null,null,null,null,null,null,null,null,null,null,null,"Od (max 1.1.2021)","Do (max 31.12.2027)"]
["Hlavní administrativní tým - jednorázová částka","Projektový manažer",null,0.5,null,{"$f":"data!F12","v":76454.539941176467},null,{"$f":"F7*$G$10*D7","v":458727.23964705877}]
[null,"Finanční manažer",null,0.5,null,{"$f":"data!F13","v":70468.2885882353},null,{"$f":"F8*$G$10*D8","v":422809.7315294118}]
[null,"Administrativní pracovník",null,0.3,null,{"$f":"data!F17","v":45128.680529411773},null,162463.24990588237]
[null,"2.7.1 Celkem",null,null,null,null,12,{"$f":"SUM(H7:H9)","v":1044000.221082353}]
[null,"Pracovní smlovy",null,null,{"$f":"SUM(E12:E33)","v":280000},{"$f":"SUM(F12:F33)","v":374640},null,{"$f":"SUM(H12:H33)","v":2568960}]
["Odborný tým","lektor A",100000,0.8,{"$f":"C12*D12","v":80000},{"$f":"E12*1.338","v":107040},4,{"$f":"F12*G12","v":428160},"Jednotkový náklad",1111]
[null,"exceletní vědec B",100000,1,100000,{"$f":"E13*1.338","v":133800},4,{"$f":"F13*G13","v":535200},null,null,"mzda",null,"Dle charakteristiky PM odpovídá nejlépe tento kód","2021-01-01","2021-12-31",null,"Partner A","Aktivita 1 "]
[null,"lektor C",100000,1,100000,133800,12,{"$f":"F14*G14","v":1605600}]
[null,null,0,null,0,0,null,0]
[null,null,0,null,0,0,null,0]
[null,null,0,null,0,0,null,0]
[null,null,0,null,0,0,null,0]
[null,null,0,null,0,0,null,0]
[null,null,0,null,0,0,null,0]
[null,null,0,null,0,0,null,0]
[null,null,0,null,0,0,null,0]
[null,null,0,null,0,0,null,0]
[null,null,0,null,0,0,null,0]
[null,null,0,null,0,0,null,0]
[null,null,0,null,0,0,null,0]
[null,null,0,null,0,0,null,0]
[null,null,0,null,0,0,null,0]
[null,null,0,null,0,0,null,0]
[null,null,0,null,0,0,null,0]
[null,null,0,null,0,0,null,0]
[null,null,0,null,0,0,null,0]
[null,null,0,null,0,0,null,0]
[null,"Dohody o pracovní činnosti",null,null,{"$f":"SUM(E35:E46)","v":30000},{"$f":"SUM(F46:F374)","v":40140},null,{"$f":"SUM(H35:H46)","v":40140}]
[null,"Osoba 1",500,60,{"$f":"C35*D35","v":30000},{"$f":"E35*1.338","v":40140},null,{"$f":"F35","v":40140},"Hodinová sazba - výpočet",1111]
[null,null,0,null,0,0,null,{"$f":"F36","v":0},null,null,"odměna"]
[null,null,0,null,0,0,null,0]
[null,null,0,null,0,0,null,0]
[null,null,0,null,0,0,null,0]
[null,null,0,null,0,0,null,0]
[null,null,0,null,0,0,null,0]
[null,null,0,null,0,0,null,{"$f":"F42","v":0}]
[null,null,0,null,0,0,null,0]
[null,null,0,null,0,0,null,0]
[null,null,0,null,0,0,null,0]
[null,null,0,null,0,0,null,0]
[null,"Dohody o provedení práce (do výše 10 tis.Kč/měs)",null,null,{"$f":"SUM(E48:E52)","v":10000},{"$f":"SUM(F48:F52)","v":0},null,{"$f":"SUM(H48:H52)","v":10000}]
[null,"Osoba 1",500,20,{"$f":"C48*D48","v":10000},0,null,{"$f":"E48","v":10000},"Hodinová sazba - výpočet"]
[null,null,0,null,0,0,null,{"$f":"E49","v":0}]
[null,null,0,null,0,0,null,{"$f":"E50","v":0}]
[null,null,0,null,0,0,null,{"$f":"E51","v":0}]
[null,null,0,null,0,0,null,{"$f":"E52","v":0}]
[null,"Dohody o provedení práce (nad 10 tis.Kč/měs)",null,null,{"$f":"SUM(E54:E56)","v":15000},{"$f":"SUM(F54:F56)","v":20070},null,{"$f":"SUM(H54:H56)","v":20070}]
[null,"Osoba 1",1500,10,15000,{"$f":"_xlfn.IFS(E54>=10001,E54*1.338,E54<=10000,E54)","v":20070},null,{"$f":"F54","v":20070}]
[null,null,0,null,0,{"$f":"_xlfn.IFS(E55>=10001,E55*1.338,E55<=10000,E55)","v":0},null,0]
[null,null,0,null,0,{"$f":"_xlfn.IFS(E56>=10001,E56*1.338,E56<=10000,E56)","v":0},null,0]
[null,"2.7.2. Celkem",null,null,null,null,null,{"$f":"SUM(H47,H34,H11,H53)","v":2639170}]
[]
[null,null,null,null,null,null,null,{"$f":"H10+H57","v":3683170.221082353}]
["Celkem"]

{"sheet":"data","index":3,"n_rows":17,"n_cols":9,"rows_kept":17,"cut":false,"hidden":true,"merged":[[8,2,9,2],[8,3,9,3],[8,4,9,4],[8,5,9,5],[13,0,16,0]]}
["Priorita","Specifický cíl","pozice","Admin_mzda/1FTE/1měsíc","Typ pracovně právního vztahu ","Způsob stanovení nákladů na zaměstnance","DPH","Forma odměny","Paušál"]
["1. Karlovarský kraj","1.1","Hlavní projektový manažer",142438,"Pracovní smlouva",null,false,"mzda",0.03]
["2. Ústecký kraj","2.1","Projektový manažer",76455,"DPČ","Hodinová sazba - výpočet",null,"plat",0.05]
["3. Moravskoslezský kraj","3.1","Finanční manažer",70468,"DPP","Jednotkový náklad ISPV",null,"odměna",7.0000000000000007E-2]
[null,null,"Administrativní pracovník",45129]
[]
[]
["Vážený průměr"]
["počet projektů plat",13,"Plat v Kč","Mzda v Kč","Sazba hrubé mzdy dle ISPV  (za plný úvazek) v Kč","Výše osobních nákladů, tj. hrubá mzda + odvody za zaměstnavatele (za plný úvazek) v  Kč"]
["počet projektů mzdy",21]
["Hlavní projektový manažer/ vedoucí projektu",2422,70687,128598,{"$f":"((C11*$B$9)+(D11*$B$10))/34","v":106455.55882352941},{"$f":"E11*1.338","v":142437.53770588237}]
["Projektový manažer/ týmový manažer",2422,47673,63002,{"$f":"((C12*$B$9)+(D12*$B$10))/34","v":57140.911764705881},{"$f":"E12*1.338","v":76454.539941176467}]
["Finanční manažer",2411,42052,59238,{"$f":"((C13*$B$9)+(D13*$B$10))/34","v":52666.882352941175},{"$f":"E13*1.338","v":70468.2885882353}]
["Administrativní pracovník",4110,33435,27325,{"$f":"((C14*$B$9)+(D14*$B$10))/34","v":29661.176470588234}]
[null,3343,36488,39354,38258.176470588238]
[null,4120,33489,33128,33266.029411764706]
[null,null,null,"průměr za (4110, 3343, 4120)",{"$f":"AVERAGE(E14:E16)","v":33728.460784313727},45128.680529411773]

{"sheet":"List2","index":4,"n_rows":49,"n_cols":8,"rows_kept":49,"cut":false,"hidden":true,"merged":[]}
["Volba","nezvoleno","PO 2"]
["nezvoleno","nezvoleno","2.2 a) Lokální spalovací stacionární zdroje"]
[null,null,"2.2 a) Ostatní spalovací stacionární zdroje"]
["PO_2",null,"2.2 b) Ostatní stacionární zdroje"]
[null,null,"2.2 c) Stacionární zdroje těkavých organických látek"]
[null,null,"2.2 d) Dodatečné technologie a změny technolog. postupů u spalovacích zdrojů"]
[null,null,"2.2 e) Dodatečné technologie a změny technolog. postupů u stacionárních zdrojů"]
[null,null,"2.2 f) Dodatečné technologie a změny technolog. postupů u stacionárních zdrojů těkavých organických látek"]
[null,null,"2.2 g) Technologie ke snižování emisí NH3"]
[null,null,"2.2 h) Omezování prašnosti z plošných zdrojů"]
[null,null,"2.2 i) Soustavy centralizovaného zásobování tepelnou energií"]
[null,null,"2.3 Projekty zaměřené na monitoring"]
[]
[]
[]
[]
[]
[]
[]
[]
[]
["Volba",true,false]
[true,"Kotel na pevná paliva","není"]
[false,"Kondenzační kotel na zemní plyn"]
[null,"Elektrické tepelné čerpadlo vzduch/voda"]
[null,"Elektrické tepelné čerpadlo země/voda"]
[null,"Elektrické tepelné čerpadlo voda/voda"]
[null,"Plynové tepelné čerpadlo vzduch/voda"]
[null,"Plynové tepelné čerpadlo země/voda"]
[null,"Plynové tepelné čerpadlo voda/voda"]
[null,"Plochý kolektor"]
[null,"Trubicový vakuový kolektor"]
[]
[]
[null,null,null,9400]
[null,null,null,8300]
[2,null,null,30000]
[8300,null,null,45900]
[false,null,null,45900]
[true,null,null,20600]
[false,null,null,34300]
[null,null,null,34300,2]
[null,null,null,26500,{"$f":"E42","v":2}]
[null,null,null,48400,2000]
[null,null,null,170000]
[]
[null,null,null,null,null,null,null,"KDYŽ(B2=\"ano\";C6*0,22;KDYŽ(B2=\"ne\";C6*0,05;\"chyba\"))"]
["Kotel na biomasu/tuhá paliva/plyn"]
["Plynové / Elektrické TČ"]